bitfinex/quotes_ETHUSD_20250803
["timestamp","ask_amount","ask_price","bid_price","bid_amount"]
[1754237696432,0.9379,3476.6,3476.1,1.3898473]
[1754237696631,0.9379,3476.5,3476.1,1.3898473]
[1754237696820,0.4588,3476.5,3476.1,1.3898473]
[1754237697021,0.4791,3476.4,3476.1,1.3898473]
[1754237699337,0.4791,3476.4,3476.1,0.5248043]
[1754237699634,0.4791,3476.4,3476.2,0.865011]
[1754237699834,4.383,3476.7,3476.2,0.865011]
[1754237700048,0.4759,3476.6,3476.2,3.06165916]
[1754237700407,0.4759,3476.6,3476.2,7.44265916]
[1754237700739,0.9258,3476.6,3476.2,7.44265916]
[1754237700934,0.8758,3476.6,3476.2,7.44265916]
[1754237701140,0.4499,3476.6,3476.2,7.44265916]
[1754237701613,0.4499,3476.5,3476.2,7.44265916]
[1754237703140,0.9258,3476.5,3476.2,7.44265916]
[1754237703435,0.4499,3476.5,3476.3,1.63082012]
[1754237703651,0.4759,3476.5,3476.3,1.63082012]
[1754237703851,0.9258,3476.5,3476.3,1.63082012]
[1754237704152,0.4759,3476.4,3476.3,1.63082012]
[1754237704810,0.9258,3476.4,3476.3,1.63082012]
[1754237705010,0.9258,3476.4,3476.3,2.49577812]
[1754237712284,0.9258,3476.4,3476.3,0.864958]
[1754237718559,0.9258,3476.4,3476.2,4.381]
[1754237719154,0.9258,3476.3,3476.2,4.381]
[1754237721558,0.9258,3476.3,3476.1,0.002]
[1754237721764,0.9258,3476.2,3476.1,4.376]
[1754237724924,0.9258,3476.2,3476.1,0.002]
[1754237728141,30.0,3476.5,3476.1,0.002]
[1754237728339,0.9258,3476.4,3476.1,0.002]
[1754237728551,0.001,3476.6,3476.1,0.002]
[1754237728748,30.0,3476.4,3476.1,0.002]
[1754237728950,0.9349,3476.3,3476.1,0.002]
[1754237729427,0.4787,3476.2,3476.1,0.002]
[1754237729628,0.9349,3476.2,3476.1,0.002]
[1754237731672,0.4787,3476.2,3476.1,0.002]
[1754237731974,0.9349,3476.2,3476.1,0.002]
[1754237733636,0.001,3476.6,3476.1,0.44267695]
[1754237733836,0.001,3476.6,3476.5,16.1936663]
[1754237734236,0.001,3476.6,3476.5,21.1176663]
[1754237734437,0.001,3476.6,3476.5,21.1756663]
[1754237735065,0.001,3476.6,3476.5,21.3196663]
[1754237737374,0.001,3477.0,3476.5,21.3196663]
[1754237737555,0.001,3477.0,3476.9,16.7436663]
[1754237737750,0.001,3477.0,3476.9,21.1176663]
[1754237739850,0.001,3477.0,3476.9,24.1176663]
[1754237740347,0.001,3477.0,3476.9,24.1756663]
[1754237740955,0.001,3477.0,3476.9,24.1176663]
[1754237741158,1.3584188,3478.0,3477.1,0.55]
[1754237741373,0.4572,3478.7,3478.0,0.55]
[1754237741587,0.9359,3478.7,3478.5,16.1936663]
[1754237741887,0.4797,3478.6,3478.5,23.5736663]
[1754237742189,0.9359,3478.6,3478.5,23.5736663]
[1754237742389,0.001,3478.6,3478.5,23.5736663]
[1754237742554,0.001,3478.6,3478.5,26.25563293]
[1754237746200,0.001,3478.6,3478.5,0.55]
[1754237746201,0.9359,3478.6,3478.5,0.55]
[1754237746393,0.9359,3478.6,3478.5,4.378]
[1754237746891,0.9359,3478.6,3478.5,4.377]
[1754237747588,0.9359,3478.6,3478.2,3.144]
[1754237747790,30.9349,3478.5,3478.2,0.144]
[1754237747968,0.9349,3478.4,3478.2,4.522]
[1754237748169,0.9349,3478.3,3478.2,4.522]
[1754237748367,0.9349,3478.3,3478.2,4.378]
[1754237748768,0.44454942,3478.3,3478.2,4.378]
[1754237750755,0.92324942,3478.3,3478.2,4.378]
[1754237751193,0.92324942,3478.3,3477.6,0.144]
[1754237751393,30.0,3478.1,3477.6,4.378]
[1754237751698,2.89697378,3478.2,3477.6,4.378]
[1754237751699,40.0,3477.9,3477.6,4.378]
[1754237751990,2.86824707,3478.2,3476.9,16.7436663]
[1754237751991,0.9349,3477.8,3477.4,4.378]
[1754237752199,0.9349,3477.7,3477.4,4.378]
[1754237752500,0.9349,3477.6,3477.4,4.378]
[1754237752701,0.9349,3477.5,3476.9,16.1936663]
[1754237752996,0.9349,3477.5,3477.0,4.38]
[1754237753160,30.9349,3477.4,3477.0,4.38]
[1754237753355,0.001,3478.6,3477.1,16.22242589]
[1754237753356,0.4562,3477.7,3477.1,16.22242589]
[1754237753561,0.4562,3478.0,3477.6,16.1936663]
[1754237753880,0.4562,3478.3,3477.6,21.0300663]
[1754237754082,0.4562,3478.3,3477.7,2.11740663]
[1754237754290,0.9349,3478.3,3477.7,2.11740663]
[1754237755074,0.4562,3478.2,3477.7,2.11740663]
[1754237755288,0.9349,3478.1,3476.9,0.4554]
[1754237755462,0.9349,3478.0,3477.0,4.527]
[1754237755800,0.9349,3477.9,3477.1,0.55]
[1754237755965,0.9349,3477.8,3477.2,4.384]
[1754237756300,30.9349,3477.7,3476.5,6.916]
[1754237756595,30.0,3477.5,3476.6,16.1936663]
[1754237756799,0.9349,3477.4,3476.8,4.385]
[1754237757056,10.0,3477.9,3476.8,4.385]
[1754237757260,0.9349,3477.3,3476.8,7.22667345]
[1754237757417,10.0,3477.9,3476.8,7.22667345]
[1754237757625,3.0,3478.0,3476.8,7.22667345]
[1754237757626,40.0,3477.7,3476.8,7.22667345]
[1754237757955,0.9349,3477.6,3476.8,7.22667345]
[1754237758136,30.0,3477.5,3476.8,7.22667345]
[1754237758337,0.9349,3477.4,3476.9,5.11753093]
[1754237758537,0.9349,3477.3,3476.9,5.11753093]
[1754237758733,0.9243,3477.2,3476.9,5.11753093]
[1754237758961,0.9243,3477.1,3477.0,4.384]
[1754237759257,0.9243,3477.1,3476.5,6.916]
[1754237759451,0.9243,3477.0,3476.7,4.384]
[1754237759645,3.0,3477.9,3476.7,4.384]
[1754237759646,0.9243,3476.9,3476.7,4.384]
[1754237759957,0.9243,3476.8,3476.7,4.384]
[1754237763362,30.0,3476.7,3476.3,0.002]
[1754237763545,30.4564,3476.7,3476.3,0.002]
[1754237763749,0.4679,3476.6,3476.3,0.002]
[1754237763964,30.0,3476.5,3476.3,0.002]
[1754237764428,0.9243,3476.6,3476.3,0.002]
[1754237764429,0.9243,3476.4,3476.3,0.002]
[1754237764766,30.9243,3476.4,3476.3,0.002]
[1754237767974,33.9243,3476.4,3476.3,0.002]
[1754237768130,40.0,3476.2,3476.1,0.002]
[1754237768328,3.0,3476.1,3475.8,0.002]
[1754237768558,40.0,3475.8,3475.1,0.002]
[1754237768764,30.0,3475.6,3475.1,0.002]
[1754237769129,0.9243,3475.5,3475.1,0.002]
[1754237769329,40.0,3475.4,3475.1,0.002]
[1754237769560,30.0,3475.3,3475.1,0.002]
[1754237769747,30.0,3475.6,3475.1,0.002]
[1754237769954,0.9243,3475.2,3475.1,0.002]
[1754237772330,30.0,3475.4,3475.1,0.002]
[1754237772933,30.0,3475.3,3475.1,0.002]
[1754237773636,6.916,3477.8,3475.1,0.002]
[1754237773637,34.394,3476.0,3475.1,0.002]
[1754237773834,30.0,3476.0,3475.2,0.49847532]
[1754237774036,5.3193,3476.1,3475.2,0.49847532]
[1754237774564,0.9243,3476.0,3475.2,0.4697]
[1754237774735,3.0,3476.6,3475.2,0.4697]
[1754237774930,40.0,3476.4,3475.3,0.5677]
[1754237775133,5.3193,3476.5,3475.3,0.5677]
[1754237775134,0.9243,3476.3,3475.5,0.55]
[1754237775335,4.398,3476.4,3475.6,0.62844]
[1754237775567,4.398,3476.5,3475.5,0.5677]
[1754237775771,5.3223,3476.5,3475.7,0.4697]
[1754237775936,0.9243,3476.4,3475.5,0.55]
[1754237776133,4.398,3476.5,3475.6,0.54177]
[1754237776370,0.9243,3476.3,3475.6,0.54177]
[1754237776970,4.398,3476.5,3475.6,0.54177]
[1754237777276,40.0,3476.1,3475.5,4.398]
[1754237777578,0.9243,3476.0,3475.5,4.398]
[1754237777744,4.398,3476.5,3475.5,4.398]
[1754237777941,0.9243,3475.9,3475.5,4.398]
[1754237778141,0.4679,3475.8,3475.5,4.398]
[1754237778342,10.0,3476.3,3475.5,4.398]
[1754237778547,4.4,3476.4,3475.6,0.49847201]
[1754237778746,3.0,3476.5,3475.6,0.49847201]
[1754237778944,3.0,3476.5,3475.7,0.5779268]
[1754237779273,3.0,3476.5,3475.8,0.02877035]
[1754237779844,0.9243,3476.6,3475.9,0.4697]
[1754237781480,0.9243,3476.6,3475.7,0.7219268]
[1754237781481,0.9243,3476.5,3475.8,0.55]
[1754237781781,30.0,3476.3,3475.5,5.266096]
[1754237782155,0.9243,3476.2,3475.5,5.266096]
[1754237782762,0.9243,3476.1,3475.8,0.002]
[1754237783084,4.4,3476.7,3475.8,0.002]
[1754237783283,30.4564,3476.5,3475.8,0.002]
[1754237783460,0.4564,3476.5,3475.8,0.4717]
[1754237783664,0.4679,3477.3,3476.2,0.55]
[1754237783967,0.4679,3477.3,3476.7,0.55]
[1754237784168,0.9243,3477.3,3476.8,0.02876208]
[1754237784370,3.0,3477.7,3476.7,0.5787629]
[1754237784575,30.0,3477.5,3476.7,0.55]
[1754237784775,0.4679,3477.4,3476.7,0.55]
[1754237784976,0.9243,3477.4,3476.7,0.55]
[1754237785212,0.9243,3477.3,3476.7,1.1]
[1754237785370,30.0,3477.1,3476.5,4.411]
[1754237785688,0.9243,3477.0,3476.5,4.411]
[1754237785990,0.9243,3476.9,3476.5,4.411]
[1754237786173,4.43972671,3477.7,3476.5,4.411]
[1754237786378,0.9243,3476.8,3476.5,4.411]
[1754237786576,0.4564,3476.8,3476.5,4.411]
[1754237786754,0.9243,3476.7,3476.4,0.864877]
[1754237787294,0.9243,3476.6,3476.3,4.41]
[1754237788169,0.4679,3476.6,3476.3,4.41]
[1754237788373,0.4679,3476.6,3476.3,4.94037347]
[1754237790695,0.9603,3476.6,3476.3,4.94037347]
[1754237790896,0.4687,3476.5,3476.3,4.94037347]
[1754237792278,0.4687,3476.5,3476.3,4.41]
[1754237792610,10.036,3477.5,3476.2,4.408]
[1754237792611,0.9611,3476.4,3476.2,4.408]
[1754237792768,0.4924,3476.4,3476.2,4.408]
[1754237793112,0.4687,3476.3,3476.1,4.407]
[1754237793410,0.4687,3476.3,3476.1,5.0285432]
[1754237794372,0.4924,3476.4,3476.1,5.0285432]
[1754237794567,0.4687,3476.6,3476.1,5.0285432]
[1754237794801,0.9611,3476.5,3476.1,5.5209432]
[1754237795016,0.4924,3476.5,3476.1,5.5209432]
[1754237795317,0.9611,3476.4,3476.1,5.5209432]
[1754237795513,0.9611,3476.3,3476.1,0.4924]
[1754237795697,0.9611,3476.3,3476.2,4.405]
[1754237796019,0.4924,3476.6,3476.2,4.405]
[1754237796222,0.4924,3476.6,3476.2,4.89591687]
[1754237796512,0.9611,3476.6,3476.2,4.89591687]
[1754237796720,0.4924,3476.9,3476.3,0.02876621]
[1754237796867,30.0,3477.0,3476.3,0.50216621]
[1754237797067,30.0,3477.0,3476.3,3.0741656]
[1754237797871,0.4687,3477.1,3476.3,2.57199939]
[1754237798115,0.9611,3476.9,3476.3,2.57199939]
[1754237798623,0.9611,3476.9,3476.3,2.6007656]
[1754237798777,0.9611,3476.9,3476.3,2.57199939]
[1754237799608,0.9611,3476.9,3476.4,0.02876538]
[1754237799883,0.9611,3476.8,3476.4,0.02876538]
[1754237800083,0.9611,3476.8,3476.4,0.71269952]
[1754237800919,0.9611,3476.7,3476.4,0.71269952]
[1754237801125,0.9611,3476.6,3476.2,4.403]
[1754237801284,40.0,3477.2,3476.2,4.403]
[1754237801480,0.9611,3476.5,3476.0,0.002]
[1754237801728,0.9611,3476.5,3476.1,4.403]
[1754237802220,0.9611,3476.4,3476.1,4.403]
[1754237802378,0.4687,3476.3,3476.1,4.403]
[1754237802579,10.0,3477.0,3476.1,4.403]
[1754237802780,30.0,3476.9,3476.1,4.403]
[1754237803102,30.0,3476.7,3476.1,4.403]
[1754237803289,30.0,3476.9,3476.1,4.403]
[1754237803491,0.9611,3476.6,3476.1,4.403]
[1754237803726,0.9611,3476.5,3476.1,4.403]
[1754237804039,0.9611,3476.4,3476.1,4.403]
[1754237804326,0.9611,3476.3,3476.1,4.403]
[1754237804528,0.4924,3476.8,3476.2,0.4734]
[1754237804729,0.4687,3476.9,3476.3,0.02876621]
[1754237805091,30.0,3477.0,3476.3,0.50216621]
[1754237805437,30.4687,3477.0,3476.3,0.4734]
[1754237805720,0.4687,3477.0,3476.3,0.4734]
[1754237805922,0.9611,3477.0,3476.3,3.0621628]
[1754237806538,0.9611,3477.0,3476.3,3.9270468]
[1754237807087,0.9611,3476.9,3476.1,0.70701712]
[1754237807312,30.0,3476.7,3476.2,4.402]
[1754237807730,0.9611,3476.6,3476.2,4.402]
[1754237809339,0.4687,3476.6,3476.3,0.02876621]
[1754237809495,0.9611,3477.0,3476.3,0.50216621]
[1754237809838,30.0,3477.0,3476.3,0.02876621]
[1754237810129,30.0,3477.0,3476.2,4.402]
[1754237810130,0.9611,3476.9,3476.2,4.402]
[1754237810440,0.9611,3476.9,3476.3,0.02876621]
[1754237811403,0.9621,3477.1,3476.3,0.50216621]
[1754237812005,0.001,3477.1,3476.4,0.55]
[1754237812203,0.001,3477.1,3476.7,20.30221085]
[1754237812409,0.001,3477.1,3476.8,4.405]
[1754237813134,0.4697,3477.1,3476.8,4.405]
[1754237813637,0.9621,3477.1,3476.8,4.405]
[1754237814422,0.4934,3477.1,3476.8,4.405]
[1754237814730,0.001,3477.1,3476.8,6.06199957]
[1754237815832,0.4687,3477.0,3476.8,4.405]
[1754237816033,0.9611,3476.9,3476.3,0.55]
[1754237816350,0.9611,3476.9,3476.5,1.0434]
[1754237818217,0.001,3477.1,3476.5,1.54556456]
[1754237818921,0.001,3477.1,3476.5,1.5168]
[1754237819324,0.001,3477.1,3476.5,1.54556456]
[1754237819525,0.001,3477.1,3476.5,1.94978]
[1754237819526,0.919,3477.0,3476.5,1.94978]
[1754237819716,0.919,3476.9,3476.6,4.401]
[1754237819911,0.919,3476.8,3476.6,4.401]
[1754237820101,0.4677,3476.8,3476.6,4.401]
[1754237820504,0.4513,3477.0,3476.6,4.401]
[1754237820841,0.4677,3476.8,3476.6,4.401]
[1754237821040,0.001,3477.1,3476.7,4.401]
[1754237821611,0.919,3477.0,3476.7,4.401]
[1754237821835,0.001,3477.1,3476.7,4.401]
[1754237822149,0.4513,3476.9,3476.7,4.401]
[1754237822712,0.919,3476.8,3476.7,4.401]
[1754237822926,0.919,3476.8,3476.7,16.23847455]
[1754237823125,0.4677,3476.8,3476.7,20.63847455]
[1754237823913,0.4677,3476.8,3476.7,20.63647455]
[1754237824252,30.0,3476.7,3476.5,0.4677]
[1754237824553,30.0,3476.5,3476.4,4.4]
[1754237824741,30.0,3477.0,3476.3,16.23847455]
[1754237824942,0.919,3476.5,3476.3,20.63847455]
[1754237825142,0.001,3477.1,3476.3,20.63847455]
[1754237825330,0.919,3476.4,3476.3,16.23847455]
[1754237825535,0.919,3476.4,3476.3,20.63747455]
[1754237825739,0.919,3476.4,3476.0,0.002]
[1754237825906,0.919,3476.3,3476.1,4.399]
[1754237826110,0.919,3476.2,3476.1,4.399]
[1754237827811,0.4677,3476.2,3476.1,4.399]
[1754237828015,0.919,3476.2,3476.1,4.399]
[1754237833138,0.4677,3476.2,3476.1,4.399]
[1754237833338,10.4677,3476.9,3476.1,4.399]
[1754237833544,30.0,3476.7,3476.1,4.399]
[1754237833851,40.0,3476.5,3476.1,4.399]
[1754237834043,30.0,3476.5,3476.1,4.399]
[1754237834243,0.919,3476.4,3476.1,4.399]
[1754237834426,0.4677,3476.3,3476.1,4.399]
[1754237834749,0.919,3476.2,3476.1,4.399]
[1754237835124,0.4677,3476.2,3476.1,4.399]
[1754237835916,0.919,3476.2,3476.0,0.002]
[1754237836451,0.919,3476.1,3476.0,0.002]
[1754237837860,0.4513,3476.3,3476.0,0.002]
[1754237838222,0.4677,3476.2,3476.0,0.002]
[1754237838425,0.919,3476.2,3476.0,0.002]
[1754237838619,0.4677,3476.1,3476.0,0.002]
[1754237839162,0.919,3476.1,3476.0,0.002]
[1754237842662,0.4677,3476.1,3476.0,0.002]
[1754237843272,0.919,3476.1,3476.0,0.002]
[1754237843977,0.4513,3476.3,3476.0,0.002]
[1754237844336,0.919,3476.3,3476.0,0.002]
[1754237844531,0.4513,3476.3,3476.0,0.002]
[1754237844837,0.4677,3476.2,3476.0,0.002]
[1754237846072,0.919,3476.2,3476.0,0.002]
[1754237846876,0.919,3476.2,3476.1,16.24327794]
[1754237847755,0.92,3476.2,3476.1,16.24327794]
[1754237848854,0.001,3476.2,3476.1,16.24327794]
[1754237849580,0.4298,3476.2,3476.1,16.24327794]
[1754237849876,0.001,3476.2,3476.1,18.30760573]
[1754237851191,0.001,3476.2,3476.1,16.24327794]
[1754237853460,0.4298,3476.2,3476.1,16.24327794]
[1754237853658,0.4298,3476.2,3476.1,20.63227794]
[1754237853862,0.9,3476.2,3476.1,20.63227794]
[1754237857063,0.4298,3476.2,3476.1,20.63227794]
[1754237857366,0.4298,3476.2,3476.1,23.63227794]
[1754237859680,0.4298,3476.2,3476.1,24.10247794]
[1754237860090,0.001,3476.2,3476.1,24.05312642]
[1754237860782,0.001,3476.6,3476.1,24.05312642]
[1754237860969,0.001,3476.6,3476.5,16.24327794]
[1754237861704,30.0,3476.5,3476.1,0.4702]
[1754237861907,0.899,3476.4,3476.1,4.384]
[1754237862212,0.899,3476.3,3476.1,4.384]
[1754237862408,30.0,3476.5,3476.1,4.384]
[1754237862597,0.899,3476.2,3476.1,4.384]
[1754237865407,0.899,3476.5,3476.1,4.384]
[1754237865608,30.0,3476.5,3476.4,16.24327794]
[1754237866091,30.4288,3476.5,3476.4,16.24327794]
[1754237866284,0.899,3476.5,3476.4,16.24327794]
[1754237866609,0.4288,3476.5,3476.4,16.24327794]
[1754237866771,30.0,3476.5,3476.4,16.24327794]
[1754237866975,0.001,3476.6,3476.4,18.30590573]
[1754237867172,0.001,3476.6,3476.5,4.8534]
[1754237867696,0.001,3476.6,3476.5,4.8532]
[1754237869083,0.001,3477.0,3476.5,4.8532]
[1754237869304,0.001,3477.0,3476.8,16.24327794]
[1754237869486,0.001,3477.0,3476.9,6.05734417]
[1754237870409,0.001,3477.0,3476.9,6.52874417]
[1754237871588,0.001,3477.0,3476.9,6.05734417]
[1754237872206,0.4298,3477.0,3476.9,16.24327794]
[1754237872414,0.9,3477.0,3476.9,4.382]
[1754237873377,0.9,3477.0,3476.9,20.62527794]
[1754237874192,0.9,3477.0,3476.9,16.24327794]
[1754237875012,0.9,3477.0,3476.8,20.62627794]
[1754237875178,0.4712,3477.0,3476.8,20.62627794]
[1754237875378,0.899,3476.9,3476.8,20.62627794]
[1754237875687,0.001,3477.0,3476.8,22.73602573]
[1754237876191,0.9,3477.0,3476.8,22.73602573]
[1754237876815,0.4288,3476.9,3476.8,22.73602573]
[1754237877053,0.899,3476.9,3476.8,16.24327794]
[1754237877321,0.899,3476.9,3476.8,4.382]
[1754237878293,0.899,3476.9,3476.7,4.383]
[1754237878494,0.899,3476.8,3476.7,4.383]
[1754237879985,0.899,3476.8,3476.6,4.383]
[1754237880185,0.001,3477.0,3476.6,4.383]
[1754237880186,0.9362,3476.7,3476.6,4.382]
[1754237880587,0.9362,3476.7,3476.5,0.864881]
[1754237880786,0.9362,3476.7,3476.6,4.382]
[1754237881194,30.0,3476.9,3476.6,4.382]
[1754237881425,30.0,3476.9,3476.8,16.24327794]
[1754237881936,0.001,3477.0,3476.8,16.74247794]
[1754237882095,0.001,3477.2,3476.9,5.47666125]
[1754237882291,0.4724,3478.1,3477.1,0.55]
[1754237882487,10.4648,3478.3,3477.7,16.24327794]
[1754237882726,10.4648,3478.3,3477.8,4.383]
[1754237882896,0.4724,3478.2,3477.8,4.383]
[1754237883097,0.4638,3478.2,3477.8,4.383]
[1754237883416,0.4724,3478.1,3477.8,4.383]
[1754237884435,0.4638,3478.1,3477.8,4.383]
[1754237884599,0.4724,3478.0,3477.8,4.383]
[1754237885325,0.9362,3478.0,3477.8,4.383]
[1754237888341,0.4724,3478.0,3477.8,4.383]
[1754237889044,0.9362,3478.0,3477.8,4.383]
[1754237889251,0.4638,3478.0,3477.8,4.383]
[1754237889409,0.9362,3478.0,3477.8,4.383]
[1754237890012,0.9362,3477.9,3477.6,0.864604]
[1754237890259,0.02972671,3478.3,3477.3,16.38727794]
[1754237890260,0.9362,3477.8,3477.7,4.38]
[1754237890927,0.9362,3477.8,3477.4,0.864677]
[1754237890928,0.9362,3477.8,3477.6,4.38]
[1754237891124,0.9362,3477.7,3477.6,4.38]
[1754237893839,0.9362,3477.7,3477.5,4.38]
[1754237894036,40.0,3478.1,3477.5,4.38]
[1754237894215,3.0,3478.2,3477.2,0.864721]
[1754237894216,30.0,3477.5,3477.2,0.864721]
[1754237894416,40.0,3477.3,3477.2,4.38]
[1754237894618,0.9362,3477.3,3476.7,17.10809494]
[1754237894825,30.9362,3477.2,3476.8,4.38]
[1754237895051,0.4724,3477.1,3476.8,4.38]
[1754237896254,0.4724,3477.1,3476.8,6.59312949]
[1754237896450,0.4638,3477.1,3476.8,6.59312949]
[1754237896654,0.9362,3477.0,3476.8,4.38]
[1754237896856,0.4724,3476.9,3476.7,17.10809494]
[1754237897072,0.4724,3476.9,3476.8,4.38]
[1754237897765,0.4724,3476.9,3476.8,4.8524]
[1754237898784,0.4724,3476.9,3476.8,4.38]
[1754237898933,0.4638,3477.0,3476.8,4.38]
[1754237899240,0.9362,3477.2,3476.8,4.38]
[1754237899447,0.9362,3477.1,3476.8,4.38]
[1754237899765,10.0,3477.7,3476.8,4.38]
[1754237899963,0.9362,3477.0,3476.8,4.38]
[1754237900635,0.4724,3477.0,3476.8,4.38]
[1754237901368,0.9362,3477.0,3476.8,4.38]
[1754237901768,0.4638,3477.0,3476.8,4.38]
[1754237901940,0.4724,3476.9,3476.8,4.38]
[1754237902469,0.9362,3476.9,3476.8,4.38]
[1754237903162,0.9362,3477.2,3476.8,4.38]
[1754237903375,30.4724,3477.1,3476.8,4.38]
[1754237903531,0.4724,3477.1,3476.8,4.38]
[1754237904950,0.4638,3477.1,3476.8,4.38]
[1754237905158,0.4724,3477.0,3476.8,4.38]
[1754237906173,0.4638,3477.1,3476.8,4.38]
[1754237906384,0.4724,3477.2,3476.8,4.38]
[1754237906561,30.0,3477.1,3476.8,4.38]
[1754237906733,30.4724,3477.1,3476.8,4.38]
[1754237906934,0.4724,3477.1,3476.8,4.38]
[1754237907236,0.4724,3477.0,3476.8,4.38]
[1754237907436,0.4638,3477.0,3476.8,4.38]
[1754237907776,10.0,3477.7,3476.8,4.38]
[1754237907777,0.9362,3476.9,3476.8,4.38]
[1754237908669,30.0,3477.7,3476.9,0.55]
[1754237908836,30.0,3477.7,3477.2,16.24327794]
[1754237909031,0.486,3477.6,3477.3,4.38]
[1754237909245,0.9243,3477.6,3477.3,4.38]
[1754237910571,0.001,3477.8,3477.3,6.48872779]
[1754237910975,0.001,3477.8,3477.4,0.464]
[1754237911156,0.001,3477.8,3477.5,4.38]
[1754237911837,0.001,3477.8,3477.6,16.24327794]
[1754237912042,0.001,3477.8,3477.7,4.38]
[1754237912347,0.001,3477.8,3477.7,6.95272779]
[1754237914552,0.9253,3477.8,3477.6,0.115276]
[1754237914751,30.4383,3477.7,3477.3,4.38]
[1754237914951,30.9243,3477.6,3477.2,4.38]
[1754237915168,40.0,3477.5,3477.2,4.38]
[1754237915362,30.0,3477.7,3477.2,4.38]
[1754237915570,0.9243,3477.4,3477.2,4.38]
[1754237915780,0.9243,3477.3,3477.2,4.38]
[1754237917781,0.9243,3477.3,3476.7,1.008761]
[1754237917990,0.9243,3477.2,3476.5,16.24327794]
[1754237918197,30.0,3477.1,3476.6,4.38]
[1754237918486,0.9243,3477.0,3476.6,4.38]
[1754237918700,0.02872671,3477.6,3476.6,4.38]
[1754237918853,0.9243,3476.9,3476.6,4.38]
[1754237919053,0.486,3476.9,3476.6,4.38]
[1754237919255,0.4383,3476.8,3476.6,4.38]
[1754237920384,0.4383,3476.7,3476.6,4.38]
[1754237920587,0.9243,3476.7,3476.6,4.38]
[1754237921392,0.4383,3476.9,3476.6,4.38]
[1754237921567,0.9243,3476.9,3476.5,16.24327794]
[1754237921886,0.9243,3476.9,3476.6,4.38]
[1754237922188,0.4383,3476.8,3476.6,4.38]
[1754237923352,0.486,3476.9,3476.6,4.38]
[1754237923577,0.9243,3476.9,3476.6,4.38]
[1754237923795,0.9243,3476.8,3476.7,4.38]
[1754237924090,0.9243,3476.8,3476.6,4.38]
[1754237924291,0.9243,3476.7,3476.2,0.002]
[1754237924457,0.9243,3476.7,3476.3,4.38]
[1754237924657,0.9243,3476.6,3476.3,4.38]
[1754237924855,0.4383,3476.5,3476.3,4.38]
[1754237925051,0.9243,3476.5,3476.3,4.38]
[1754237925489,0.486,3476.5,3476.3,4.38]
[1754237925659,0.4383,3476.4,3476.3,4.38]
[1754237925873,0.9243,3476.4,3476.3,4.38]
[1754237927013,0.9243,3476.6,3476.3,4.38]
[1754237927617,0.486,3476.6,3476.3,4.38]
[1754237927789,0.4383,3476.5,3476.3,4.38]
[1754237928509,0.486,3476.6,3476.3,4.38]
[1754237928718,0.7382,3477.7,3476.3,4.38]
[1754237928719,0.7382,3477.7,3476.5,16.24327794]
[1754237928877,10.001,3478.2,3476.9,16.24327794]
[1754237928878,0.4383,3477.2,3476.9,16.24327794]
[1754237929083,0.9243,3477.2,3476.9,16.24327794]
[1754237929510,0.4383,3477.2,3476.9,16.24327794]
[1754237930079,3.0,3477.7,3476.8,4.38]
[1754237930080,0.9243,3477.1,3476.8,4.38]
[1754237930411,30.0,3476.9,3476.6,4.38]
[1754237930713,40.0,3476.7,3476.4,4.38]
[1754237930912,0.4383,3476.6,3476.4,4.38]
[1754237931215,0.9243,3476.5,3476.4,4.38]
[1754237932608,0.4383,3476.5,3476.4,4.38]
[1754237932815,0.486,3476.5,3476.2,0.002]
[1754237932997,30.0,3476.4,3476.2,4.382]
[1754237933186,0.9243,3476.3,3476.2,4.382]
[1754237933386,0.9243,3476.3,3476.2,0.002]
[1754237936620,0.4383,3476.3,3476.2,0.002]
[1754237937146,0.9243,3476.3,3476.2,0.002]
[1754237940509,0.4383,3476.3,3476.2,0.002]
[1754237941716,0.9318,3476.3,3476.2,0.002]
[1754237942936,0.4336,3476.7,3476.2,16.72617794]
[1754237943222,0.4336,3476.7,3476.3,4.381]
[1754237943525,10.0,3477.2,3476.6,16.24327794]
[1754237943738,0.9271,3476.9,3476.6,16.24327794]
[1754237944436,4.381,3477.4,3476.6,20.62427794]
[1754237944672,0.4336,3477.2,3476.7,0.4809]
[1754237944794,3.0,3477.3,3476.7,0.4809]
[1754237944994,0.4336,3477.1,3476.7,0.4809]
[1754237945194,0.4336,3477.1,3476.6,20.62427794]
[1754237945394,0.9271,3477.1,3476.6,22.86543273]
[1754237945595,0.9271,3477.1,3476.6,23.34633273]
[1754237946018,0.9271,3477.0,3476.6,22.86543273]
[1754237946215,0.4935,3477.0,3476.6,20.62427794]
[1754237946424,0.9271,3477.0,3476.6,20.62427794]
[1754237946624,3.0,3477.3,3476.6,20.62427794]
[1754237946625,30.0,3477.2,3476.6,20.62427794]
[1754237946831,30.0,3477.2,3476.7,0.4809]